fUST/lending_fUST_20240105
["ID","MTS","AMOUNT","RATE_DAILY","PERIOD"]
[310239314,1704412240549,-500.0,0.00038356,7]
[310239315,1704412240558,-327.08139392,0.00038356,7]
[310239316,1704412240566,-500.0,0.00038356,7]
[310239317,1704412240575,-500.0,0.00038356,7]
[310239318,1704412240585,-509.82313945,0.00038356,7]
[310239319,1704412240594,-500.0,0.00038356,7]
[310239320,1704412240603,-500.0,0.00038356,7]
[310239321,1704412240613,-1042.12,0.00038356,7]
[310239322,1704412240623,-505.60017931,0.00038356,7]
[310239323,1704412240635,-500.0,0.00038356,7]
[310239324,1704412240647,-500.0,0.00038356,7]
[310239325,1704412240658,-500.0,0.00038356,7]
[310239326,1704412240668,-500.0,0.00038356,7]
[310239327,1704412240677,-512.51115803,0.00038356,7]
[310239328,1704412240687,-500.0,0.00038356,7]
[310239329,1704412240697,-500.0,0.00038356,7]
[310239330,1704412240707,-274.27195752,0.00038356,7]
[310239331,1704412240717,-500.0,0.00038356,7]
[310239332,1704412240727,-500.0,0.00038356,7]
[310239333,1704412240737,-500.0,0.00038356,7]
[310239334,1704412240747,-500.0,0.00038356,7]
[310239335,1704412240756,-500.0,0.00038356,7]
[310239336,1704412240765,-381.72273447,0.00038356,7]
[310239337,1704412240774,-500.0,0.00038356,7]
[310239338,1704412240783,-500.0,0.00038356,7]
[310239339,1704412240792,-500.0,0.00038356,7]
[310239340,1704412240801,-500.0,0.00038356,7]
[310239341,1704412240810,-500.0,0.00038356,7]
[310239342,1704412240820,-500.0,0.00038356,7]
[310239343,1704412240829,-500.0,0.00038356,7]
[310239344,1704412240838,-500.0,0.00038356,7]
[310239345,1704412240846,-500.0,0.00038356,7]
[310239346,1704412240855,-500.0,0.00038356,7]
[310239347,1704412240865,-460.46089387,0.00038356,7]
[310239348,1704412240874,-500.0,0.00038356,7]
[310239349,1704412240884,-500.0,0.00038356,7]
[310239351,1704412240894,-554.53,0.00038356,7]
[310239352,1704412240904,-500.0,0.00038356,7]
[310239353,1704412240913,-504.90989519,0.00038356,7]
[310239354,1704412240923,-500.0,0.00038356,7]
[310239355,1704412240932,-514.36,0.00038356,7]
[310239356,1704412240941,-195.01096965,0.00038356,7]
[310239357,1704412240951,-500.0,0.00038356,7]
[310239359,1704412240960,-540.21865481,0.00038356,7]
[310239360,1704412240969,-199.75455297,0.00038356,7]
[310239361,1704412240979,-500.0,0.00038356,7]
[310239362,1704412240988,-504.6134271,0.00038356,7]
[310239363,1704412240998,-7255.12,0.00038356,7]
[310239364,1704412241008,-500.0,0.00038356,7]
[310239365,1704412241018,-500.0,0.00038356,7]
[310239366,1704412241027,-766.82,0.00038356,7]
[310239367,1704412241036,-500.0,0.00038356,7]
[310239368,1704412241045,-500.0,0.00038356,7]
[310239369,1704412241054,-500.0,0.00038356,7]
[310239370,1704412241063,-500.0,0.00038356,7]
[310239371,1704412241073,-500.0,0.00038356,7]
[310239372,1704412241082,-182.10087568,0.00038356,7]
[310239373,1704412241091,-500.0,0.00038356,7]
[310239374,1704412241100,-500.0,0.00038356,7]
[310239375,1704412241109,-500.0,0.00038356,7]
[310239376,1704412241118,-500.0,0.00038356,7]
[310239377,1704412241128,-500.0,0.00038356,7]
[310239378,1704412241137,-500.0,0.00038356,7]
[310239379,1704412241147,-500.0,0.00038356,7]
[310239380,1704412241158,-2114.19,0.00038356,7]
[310239381,1704412241167,-363.39893063,0.00038356,7]
[310239382,1704412241176,-500.0,0.00038356,7]
[310239383,1704412241186,-500.0,0.00038356,7]
[310239384,1704412241197,-564.04,0.00038356,7]
[310239385,1704412241207,-500.0,0.00038356,7]
[310239386,1704412241220,-500.0,0.00038356,7]
[310239387,1704412241230,-500.0,0.00038356,7]
[310239388,1704412241242,-500.0,0.00038356,7]
[310239389,1704412241253,-12311.82,0.00038356,7]
[310239390,1704412241263,-500.0,0.00038356,7]
[310239391,1704412241273,-500.0,0.00038356,7]
[310239392,1704412241283,-728.84,0.00038356,7]
[310239393,1704412241294,-500.0,0.00038356,7]
[310239394,1704412241304,-463.09863253,0.00038356,7]
[310239395,1704412241313,-211.99583497,0.00038356,7]
[310239396,1704412241322,-500.0,0.00038356,7]
[310239397,1704412241332,-500.0,0.00038356,7]
[310239398,1704412241342,-500.0,0.00038356,7]
[310239399,1704412241351,-500.0,0.00038356,7]
[310239400,1704412241360,-204.26502508,0.00038356,7]
[310239401,1704412241370,-500.0,0.00038356,7]
[310239402,1704412241380,-500.0,0.00038356,7]
[310239403,1704412241389,-1555.38,0.00038356,7]
[310239404,1704412241400,-500.0,0.00038356,7]
[310239405,1704412241410,-500.0,0.00038356,7]
[310239406,1704412241420,-530.19501161,0.00038356,7]
[310239407,1704412241432,-500.0,0.00038356,7]
[310239408,1704412241442,-500.0,0.00038356,7]
[310239409,1704412241452,-500.0,0.00038356,7]
[310239410,1704412241463,-316.85089093,0.00038356,7]
[310239411,1704412241473,-1646.88,0.00038356,7]
[310239412,1704412241482,-512.81465859,0.00038356,7]
[310239413,1704412241492,-500.0,0.00038356,7]
[310239414,1704412241502,-500.0,0.00038356,7]
[310239415,1704412241513,-500.0,0.00038356,7]
[310239416,1704412241524,-500.0,0.00038356,7]
[310239417,1704412241534,-500.0,0.00038356,7]
[310239418,1704412241544,-500.0,0.00038356,7]
[310239419,1704412241553,-500.0,0.00038356,7]
[310239420,1704412241564,-500.0,0.00038356,7]
[310239421,1704412241574,-377.53297422,0.00038356,7]
[310239422,1704412241583,-2752.67,0.00038356,7]
[310239423,1704412241593,-4297.23,0.00038356,7]
[310239424,1704412241602,-500.0,0.00038356,7]
[310239425,1704412241611,-293.33550958,0.00038356,7]
[310239426,1704412241621,-500.0,0.00038356,7]
[310239427,1704412241630,-500.0,0.00038356,7]
[310239428,1704412241639,-500.0,0.00038356,7]
[310239429,1704412241648,-500.0,0.00038356,7]
[310239430,1704412241657,-500.0,0.00038356,7]
[310239431,1704412241665,-500.0,0.00038356,7]
[310239432,1704412241675,-500.0,0.00038356,7]
[310239433,1704412241684,-1039.88,0.00038356,7]
[310239434,1704412241693,-500.0,0.00038356,7]
[310239435,1704412241702,-500.0,0.00038356,7]
[310239436,1704412241711,-500.0,0.00038356,7]
[310239437,1704412241720,-1629.44,0.00038356,7]
[310239438,1704412241729,-500.0,0.00038356,7]
[310239439,1704412241739,-500.0,0.00038356,7]
[310239440,1704412241747,-16883.75,0.00038356,7]
[310239441,1704412241757,-500.0,0.00038356,7]
[310239442,1704412241766,-500.0,0.00038356,7]
[310239443,1704412241777,-741.17,0.00038356,7]
[310239444,1704412241788,-500.0,0.00038356,7]
[310239445,1704412241797,-500.0,0.00038356,7]
[310239446,1704412241806,-203.57449121,0.00038356,7]
[310239447,1704412241815,-500.0,0.00038356,7]
[310239448,1704412241824,-2207.34,0.00038356,7]
[310239449,1704412241834,-167.58573337,0.00038356,7]
[310239450,1704412241844,-2906.2,0.00038356,7]
[310239451,1704412241853,-936.41,0.00038356,7]
[310239452,1704412241863,-500.0,0.00038356,7]
[310239453,1704412241873,-500.0,0.00038356,7]
[310239454,1704412241882,-500.0,0.00038356,7]
[310239455,1704412241891,-500.0,0.00038356,7]
[310239456,1704412241900,-500.0,0.00038356,7]
[310239457,1704412241910,-553.08,0.00038356,7]
[310239458,1704412241919,-317.5434782,0.00038356,7]
[310239459,1704412241928,-500.0,0.00038356,7]
[310239460,1704412241937,-500.0,0.00038356,7]
[310239461,1704412241946,-500.0,0.00038356,7]
[310239462,1704412241955,-500.0,0.00038356,7]
[310239463,1704412241965,-500.0,0.00038356,7]
[310239464,1704412241974,-3380.08,0.00038356,7]
[310239465,1704412241984,-500.0,0.00038356,7]
[310239466,1704412241993,-500.0,0.00038356,7]
[310239467,1704412242002,-575.41010364,0.00038356,7]
[310239468,1704412242011,-500.0,0.00038356,7]
[310239469,1704412242020,-500.0,0.00038356,7]
[310239470,1704412242031,-500.0,0.00038356,7]
[310239471,1704412242039,-500.0,0.00038356,7]
[310239472,1704412242048,-500.0,0.00038356,7]
[310239473,1704412242057,-500.0,0.00038356,7]
[310239474,1704412242066,-500.0,0.00038356,7]
[310239475,1704412242075,-324.47795892,0.00038356,7]
[310239476,1704412242085,-1637.06,0.00038356,7]
[310239477,1704412242093,-500.0,0.00038356,7]
[310239478,1704412242103,-500.0,0.00038356,7]
[310239479,1704412242111,-500.0,0.00038356,7]
[310239480,1704412242121,-500.0,0.00038356,7]
[310239481,1704412242131,-1000.0,0.00038356,2]
[310239482,1704412242140,-500.0,0.00038356,7]
[310239483,1704412242149,-500.0,0.00038356,7]
[310239484,1704412242158,-500.0,0.00038356,7]
[310239485,1704412242167,-500.0,0.00038356,7]
[310239486,1704412242176,-500.0,0.00038356,7]
[310239488,1704412242186,-500.0,0.00038356,7]
[310239489,1704412242195,-559.12,0.00038356,7]
[310239490,1704412242206,-500.0,0.00038356,7]
[310239491,1704412242216,-1285.17,0.00038356,7]
[310239492,1704412242225,-576.35,0.00038356,7]
[310239493,1704412242234,-500.0,0.00038356,7]
[310239494,1704412242243,-500.0,0.00038356,7]
[310239495,1704412242252,-500.0,0.00038356,7]
[310239496,1704412242261,-500.0,0.00038356,7]
[310239497,1704412242270,-500.0,0.00038356,7]
[310239498,1704412242280,-500.0,0.00038356,7]
[310239500,1704412242289,-500.0,0.00038356,7]
[310239501,1704412242298,-6871.97,0.00038356,7]
[310239502,1704412242308,-500.0,0.00038356,7]
[310239503,1704412242317,-500.0,0.00038356,7]
[310239504,1704412242326,-435.96738772,0.00038356,7]
[310239506,1704412242335,-500.0,0.00038356,7]
[310239509,1704412242345,-500.0,0.00038356,7]
[310239511,1704412242354,-500.0,0.00038356,2]
[310239513,1704412242362,-540.6,0.00038356,7]
[310239515,1704412242371,-468.37634405,0.00038356,7]
[310239518,1704412242380,-526.83251087,0.00038356,7]
[310239521,1704412242389,-500.0,0.00038356,7]
[310239524,1704412242398,-500.0,0.00038356,7]
[310239526,1704412242406,-250.0,0.00038487,30]
[310239528,1704412242415,-200.13943,0.000386,10]
[310239530,1704412242424,-2180.32900264,0.00038618,2]
[310239532,1704412242433,-301.32802853,0.0003862,2]
[310239534,1704412242441,-500.0,0.0003863,7]
[310239536,1704412242450,-500.0,0.0003863,7]
[310239538,1704412242459,-500.0,0.0003863,7]
[310239540,1704412242467,-500.0,0.0003863,7]
[310239542,1704412242477,-500.0,0.0003863,7]
[310239544,1704412242485,-506.95750076,0.0003863,7]
[310239546,1704412242495,-500.0,0.0003863,7]
[310239548,1704412242503,-500.0,0.0003863,7]
[310239549,1704412242512,-500.0,0.0003863,7]
[310239550,1704412242520,-500.0,0.0003863,7]
[310239551,1704412242530,-500.0,0.0003863,7]
[310239552,1704412242539,-500.0,0.0003863,7]
[310239553,1704412242548,-500.0,0.0003863,7]
[310239554,1704412242557,-500.0,0.0003863,7]
[310239555,1704412242566,-500.0,0.0003863,7]
[310239556,1704412242575,-500.0,0.0003863,7]
[310239558,1704412242585,-150.0,0.0003863,7]
[310239559,1704412242594,-500.0,0.0003863,7]
[310239561,1704412242603,-500.0,0.0003863,7]
[310239563,1704412242612,-500.0,0.0003863,7]
[310239565,1704412242622,-500.36097863,0.0003863,7]
[310239567,1704412242631,-500.0,0.0003863,7]
[310239568,1704412242640,-500.0,0.0003863,7]
[310239570,1704412242652,-500.0,0.0003863,7]
[310239571,1704412242662,-500.0,0.0003863,7]
[310239572,1704412242673,-761.36,0.0003863,7]
[310239574,1704412242682,-500.0,0.0003863,7]
[310239575,1704412242693,-500.0,0.0003863,7]
[310239577,1704412242703,-500.0,0.0003863,7]
[310239579,1704412242712,-500.0,0.0003863,7]
[310239580,1704412242721,-2856.90497968,0.0003863,10]
[310239581,1704412242730,-500.0,0.0003863,7]
[310239582,1704412242740,-620.5,0.0003863,7]
[310239584,1704412242749,-500.0,0.0003863,7]
[310239585,1704412242758,-500.0,0.0003863,7]
[310239586,1704412242767,-500.0,0.0003863,7]
[310239587,1704412242777,-500.0,0.0003863,7]
[310239588,1704412242786,-506.02,0.0003863,7]
[310239589,1704412242795,-500.0,0.0003863,7]
[310239591,1704412242804,-1254.16,0.0003863,7]
[310239593,1704412242814,-500.0,0.0003863,7]
[310239595,1704412242823,-1229.65,0.0003863,2]
[310239596,1704412242835,-500.0,0.0003863,2]
[310239597,1704412242845,-500.0,0.0003863,7]
[310239598,1704412242855,-500.0,0.0003863,2]
[310239599,1704412242866,-765.27,0.0003863,7]
[310239600,1704412242875,-329.1053142,0.0003863,7]
[310239601,1704412242885,-500.0,0.0003863,7]
[310239602,1704412242894,-500.0,0.0003863,7]
[310239603,1704412242903,-500.0,0.0003863,7]
[310239604,1704412242913,-500.0,0.0003863,7]
[310239605,1704412242922,-500.0,0.0003863,7]
[310239606,1704412242931,-500.0,0.0003863,7]
[310239607,1704412242940,-500.0,0.0003863,7]
[310239608,1704412243028,-845.31,0.0003863,7]
[310239609,1704412243046,-500.0,0.0003863,7]
[310239610,1704412243056,-500.0,0.0003863,7]
[310239611,1704412243064,-500.0,0.0003863,7]
[310239612,1704412243074,-500.0,0.0003863,7]
[310239613,1704412243083,-500.0,0.0003863,7]
[310239614,1704412243093,-500.0,0.0003863,7]
[310239615,1704412243102,-500.0,0.0003863,7]
[310239616,1704412243111,-1047.07,0.0003863,7]
[310239617,1704412243120,-500.0,0.0003863,7]
[310239618,1704412243129,-1283.98,0.0003863,7]
[310239619,1704412243138,-596.13,0.0003863,7]
[310239620,1704412243147,-500.0,0.0003863,7]
[310239621,1704412243156,-500.0,0.0003863,7]
[310239622,1704412243165,-500.0,0.0003863,7]
[310239623,1704412243174,-500.0,0.0003863,7]
[310239624,1704412243184,-500.0,0.0003863,7]
[310239625,1704412243193,-500.0,0.0003863,7]
[310239626,1704412243202,-500.0,0.0003863,7]
[310239627,1704412243212,-500.0,0.0003863,7]
[310239628,1704412243222,-500.0,0.0003863,7]
[310239629,1704412243232,-2898.29,0.0003863,7]
[310239630,1704412243242,-558.65,0.0003863,7]
[310239631,1704412243251,-634.7,0.0003863,7]
[310239632,1704412243261,-500.0,0.0003863,7]
[310239633,1704412243270,-407.33396314,0.0003863,7]
[310239634,1704412243281,-500.0,0.0003863,7]
[310239635,1704412243290,-500.0,0.0003863,7]
[310239636,1704412243298,-560.84728984,0.0003863,7]
[310239637,1704412243307,-1417.87,0.0003863,7]
[310239638,1704412243316,-500.0,0.0003863,7]
[310239639,1704412243326,-500.0,0.0003863,7]
[310239640,1704412243335,-500.0,0.0003863,7]
[310239641,1704412243343,-500.0,0.0003863,7]
[310239642,1704412243353,-550.79041391,0.0003863,7]
[310239643,1704412243362,-500.0,0.0003863,7]
[310239644,1704412243371,-500.0,0.0003863,7]
[310239645,1704412243380,-500.0,0.0003863,7]
[310239646,1704412243389,-1094.85,0.0003863,7]
[310239647,1704412243398,-500.0,0.0003863,7]
[310239648,1704412243407,-500.0,0.0003863,7]
[310239649,1704412243416,-500.0,0.0003863,7]
[310239650,1704412243425,-500.10326256,0.0003863,7]
[310239651,1704412243434,-500.0,0.0003863,7]
[310239652,1704412243443,-552.2032934,0.0003863,7]
[310239653,1704412243451,-500.0,0.0003863,7]
[310239654,1704412243460,-500.0,0.0003863,7]
[310239655,1704412243469,-607.78067208,0.0003863,7]
[310239656,1704412243478,-500.0,0.0003863,7]
[310239657,1704412243489,-503.19522326,0.0003863,7]
[310239658,1704412243499,-500.0,0.0003863,7]
[310239659,1704412243509,-500.0,0.0003863,7]
[310239660,1704412243518,-500.0,0.0003863,7]
[310239661,1704412243528,-500.0,0.0003863,7]
[310239662,1704412243537,-500.0,0.0003863,7]
[310239663,1704412243546,-1042.12,0.0003863,7]
[310239664,1704412243555,-500.0,0.0003863,7]
[310239665,1704412243566,-500.0,0.0003863,7]
[310239666,1704412243576,-500.0,0.0003863,7]
[310239667,1704412243586,-500.0,0.0003863,7]
[310239668,1704412243595,-500.0,0.0003863,7]
[310239669,1704412243604,-500.0,0.0003863,7]
[310239670,1704412243614,-500.0,0.0003863,7]
[310239671,1704412243625,-500.0,0.0003863,7]
[310239672,1704412243634,-500.0,0.0003863,7]
[310239673,1704412243644,-500.0,0.0003863,7]
[310239674,1704412243653,-500.0,0.0003863,7]
[310239675,1704412243663,-500.0,0.0003863,7]
[310239676,1704412243673,-500.0,0.0003863,7]
[310239677,1704412243682,-500.0,0.0003863,7]
[310239678,1704412243691,-500.0,0.0003863,7]
[310239679,1704412243701,-500.0,0.0003863,7]
[310239680,1704412243712,-554.53,0.0003863,7]
[310239681,1704412243723,-500.0,0.0003863,7]
[310239682,1704412243733,-500.0,0.0003863,7]
[310239683,1704412243744,-514.36,0.0003863,7]
[310239684,1704412243753,-176.08753667,0.0003863,7]
[310239685,1704412243763,-7255.12,0.0003863,7]
[310239686,1704412243772,-500.0,0.0003863,7]
[310239687,1704412243781,-500.0,0.0003863,7]
[310239688,1704412243791,-766.82,0.0003863,7]
[310239689,1704412243800,-500.0,0.0003863,7]
[310239690,1704412243809,-500.0,0.0003863,7]
[310239691,1704412243818,-500.0,0.0003863,7]
[310239692,1704412243828,-500.0,0.0003863,7]
[310239693,1704412243837,-500.0,0.0003863,7]
[310239694,1704412243847,-629.26352752,0.0003863,7]
[310239695,1704412243856,-500.0,0.0003863,7]
[310239696,1704412243865,-500.0,0.0003863,7]
[310239697,1704412243874,-500.0,0.0003863,7]
[310239698,1704412243884,-500.0,0.0003863,7]
[310239699,1704412243893,-500.0,0.0003863,7]
[310239700,1704412243902,-2114.19,0.0003863,7]
[310239701,1704412243911,-500.0,0.0003863,7]
[310239702,1704412243920,-563.33939709,0.0003863,7]
[310239703,1704412243930,-564.04,0.0003863,7]
[310239704,1704412243939,-500.0,0.0003863,7]
[310239705,1704412243948,-500.0,0.0003863,7]
[310239706,1704412243956,-500.0,0.0003863,7]
[310239707,1704412243965,-500.0,0.0003863,7]
[310239708,1704412243975,-12311.82,0.0003863,7]
[310239709,1704412243984,-500.0,0.0003863,7]
[310239710,1704412243994,-500.0,0.0003863,7]
[310239711,1704412244003,-728.84,0.0003863,7]
[310239712,1704412244013,-405.35562547,0.0003863,7]
[310239713,1704412244023,-500.0,0.0003863,7]
[310239714,1704412244035,-500.0,0.0003863,7]
[310239715,1704412244044,-500.0,0.0003863,7]
[310239716,1704412244053,-500.0,0.0003863,7]
[310239717,1704412244063,-500.0,0.0003863,7]
[310239718,1704412244073,-500.0,0.0003863,7]
[310239719,1704412244082,-1555.38,0.0003863,7]
[310239720,1704412244094,-500.0,0.0003863,7]
[310239721,1704412244103,-556.77115775,0.0003863,7]
[310239722,1704412244112,-212.49443009,0.0003863,7]
[310239723,1704412244121,-500.0,0.0003863,7]
[310239724,1704412244130,-500.0,0.0003863,7]
[310239725,1704412244139,-1646.88,0.0003863,7]
[310239726,1704412244148,-500.0,0.0003863,7]
[310239727,1704412244158,-500.0,0.0003863,7]
[310239728,1704412244167,-500.0,0.0003863,7]
[310239729,1704412244176,-500.0,0.0003863,7]
[310239730,1704412244186,-2752.67,0.0003863,7]
[310239731,1704412244195,-4297.23,0.0003863,7]
[310239732,1704412244207,-500.0,0.0003863,7]
[310239733,1704412244219,-500.0,0.0003863,7]
[310239734,1704412244229,-500.0,0.0003863,7]
[310239735,1704412244239,-500.0,0.0003863,7]
[310239736,1704412244248,-500.0,0.0003863,7]
[310239737,1704412244259,-194.65028175,0.0003863,7]
[310239738,1704412244269,-500.0,0.0003863,7]
[310239739,1704412244281,-1039.88,0.0003863,7]
[310239740,1704412244290,-500.0,0.0003863,7]
[310239741,1704412244302,-500.0,0.0003863,7]
[310239742,1704412244312,-500.0,0.0003863,7]
[310239743,1704412244322,-1629.44,0.0003863,7]
[310239744,1704412244332,-500.0,0.0003863,7]
[310239745,1704412244342,-500.0,0.0003863,7]
[310239746,1704412244352,-16883.75,0.0003863,7]
[310239747,1704412244361,-500.0,0.0003863,7]
[310239748,1704412244370,-500.0,0.0003863,7]
[310239749,1704412244381,-741.17,0.0003863,7]
[310239750,1704412244391,-500.0,0.0003863,7]
[310239751,1704412244399,-500.0,0.0003863,7]
[310239752,1704412244409,-500.0,0.0003863,7]
[310239753,1704412244418,-2207.34,0.0003863,7]
[310239754,1704412244428,-2906.2,0.0003863,7]
[310239755,1704412244438,-936.41,0.0003863,7]
[310239756,1704412244448,-500.0,0.0003863,7]
[310239757,1704412244457,-500.0,0.0003863,7]
[310239758,1704412244469,-500.0,0.0003863,7]
[310239759,1704412244478,-500.0,0.0003863,7]
[310239760,1704412244487,-500.0,0.0003863,7]
[310239761,1704412244496,-553.08,0.0003863,7]
[310239762,1704412244505,-413.04344078,0.0003863,7]
[310239763,1704412244514,-500.0,0.0003863,7]
[310239764,1704412244523,-500.0,0.0003863,7]
[310239765,1704412244533,-500.0,0.0003863,7]
[310239766,1704412244542,-500.0,0.0003863,7]
[310239767,1704412244552,-3380.08,0.0003863,7]
[310239768,1704412244561,-500.0,0.0003863,7]
[310239769,1704412244570,-500.0,0.0003863,7]
[310239770,1704412244580,-500.0,0.0003863,7]
[310239771,1704412244590,-500.0,0.0003863,7]
[310239772,1704412244599,-502.61580477,0.0003863,7]
[310239773,1704412244608,-500.0,0.0003863,7]
[310239774,1704412244618,-500.0,0.0003863,7]
[310239775,1704412244627,-500.0,0.0003863,7]
[310239776,1704412244636,-1637.06,0.0003863,7]
[310239777,1704412244649,-500.0,0.0003863,7]
[310239778,1704412244659,-500.0,0.0003863,7]
[310239779,1704412244668,-500.0,0.0003863,7]
[310239780,1704412244677,-500.0,0.0003863,7]
[310239781,1704412244688,-1000.0,0.0003863,2]
[310239782,1704412244699,-500.0,0.0003863,7]
[310239783,1704412244708,-500.0,0.0003863,7]
[310239784,1704412244717,-500.0,0.0003863,7]
[310239785,1704412244726,-257.73867915,0.0003863,7]
[310239876,1704412246078,-474.99468544,0.00034999,2]
[310239879,1704412246088,-577.93676433,0.00038351,4]
[310239882,1704412246098,-203.5691509,0.00038351,7]
[310239884,1704412246107,-624.58,0.00038356,7]
[310239886,1704412246116,-346.7620586,0.00038629,7]
[310239888,1704412246126,-301.38132085,0.0003863,7]
[310239890,1704412246135,-1285.17,0.0003863,7]
[310239893,1704412246144,-576.35,0.0003863,7]
[310239896,1704412246153,-500.0,0.0003863,7]
[310239899,1704412246162,-500.0,0.0003863,7]
[310239902,1704412246171,-513.76685189,0.0003863,7]
[310239916,1704412246267,-500.0,0.0003863,7]
[310239918,1704412246277,-500.0,0.0003863,7]
[310239920,1704412246285,-2757.48899086,0.0003863,7]
[310239951,1704412802933,1000.0,0.00029,30]
[310239972,1704413349239,-154.78330338,0.00028871,4]
[310239973,1704413349262,-249.4646302,0.00028996,2]
[310239974,1704413349283,-943.0,0.00029,2]
[310239975,1704413349319,-167.03616,0.00029497,2]
[310239976,1704413349342,-1010.8,0.0002999,3]
[310239977,1704413349364,-3646.05581099,0.0003,2]
[310239978,1704413356102,-1927.54,0.0002999,3]
[310239979,1704413356123,-159112.09042149,0.0003,2]
[310239980,1704413356143,-4595.75483476,0.0003,10]
[310239981,1704413356164,-231.17470573,0.00031999,4]
[310239982,1704413356185,-111485.18068802,0.00032,10]
[310240004,1704413432074,-154.78330338,0.00031948,5]
[310240006,1704413432084,-3829.33260482,0.00032,10]
[310240198,1704413438256,-2027.46389279,0.00032,10]
[310240286,1704413441266,-2620.03271775,0.00032,10]
[310240293,1704413443033,-10085.8837849,0.00032,10]
[310240319,1704413446075,-154.78330338,0.00031948,5]
[310240320,1704413446085,-3718.26530913,0.00032,10]
[310240321,1704413446094,-4680.55048248,0.00034,2]
[310240379,1704414426090,-154.78330338,0.00029899,4]
[310240380,1704414426113,-714.52415972,0.00031848,2]
[310240381,1704414426316,-164.14675318,0.000319,2]
[310240390,1704414632188,-154.76784823,0.00030597,5]
[310240391,1704414632198,-36.4472242,0.000319,2]
[310240392,1704414632208,-895.00503871,0.00031948,2]
[310240393,1704414632217,-216.475746,0.00032447,2]
[310240394,1704414632226,-171.69354,0.00032849,2]
[310240395,1704414632235,-160.10740384,0.000339,2]
[310240396,1704414632245,-1606.28,0.00033989,3]
[310240397,1704414632254,-1338.57,0.00033989,3]
[310240398,1704414632264,-1115.47,0.00033989,3]
[310240399,1704414632273,-972.96880002,0.00033999,4]
[310240400,1704414632286,-66273.31477955,0.00033999,4]
[310240732,1704414641337,-36581.8104425,0.00033999,4]
[310240734,1704414641347,-402.94046099,0.00033999,2]
[310240736,1704414641356,-94.33819372,0.00034,2]
[310247153,1704415832444,-154.78330338,0.00031898,5]
[310247155,1704415832455,-150.0,0.00031899,2]
[310247157,1704415832465,-940.69172998,0.00031947,2]
[310247158,1704415832476,-81.52016744,0.00033386,2]
[310247159,1704415832488,-309.9070279,0.00033386,2]
[310247216,1704415838572,-1732.71280476,0.00033386,2]
[310247217,1704415838582,-297.73787857,0.0003366,2]
[310247218,1704415838592,-7160.76792794,0.00034,2]
[310247219,1704415838602,-229.93678728,0.00034,4]
[310247220,1704415838611,-3269.70776391,0.00034,14]
[310247221,1704415838621,-10270.40315204,0.00034,2]
[310247222,1704415838633,-491.97978468,0.00034,2]
[310247223,1704415838643,-383.7143455,0.00034,4]
[310247224,1704415838652,-1000.0,0.00034,7]
[310247225,1704415838661,-248.44586986,0.000345,2]
[310247245,1704415841708,-8167.20274528,0.000345,2]
[310247246,1704415841718,-1011.845693,0.00034521,2]
[310247247,1704415841727,-160.0,0.00035274,3]